[Event "27th OIBM 2024"]
[Site "Gmund am Tegernsee"]
[Date "2024.10.26"]
[Round "1.1"]
[White "Renner, Kai"]
[Black "Kollars, Dmitrij"]
[Result "0-1"]
[ECO "C78"]
[WhiteElo "2110"]
[BlackElo "2647"]
[Annotator "TA"]
[PlyCount "92"]
[EventDate "2024.09.16"]
[EventType "swiss"]
[EventCountry "GER"]
[SourceTitle "playchess.com"]
[Source "ChessBase"]
[SourceQuality "1"]
[TimeControl "40/5400+30:1800+30"]

{[%evp 17,92,0,0,0,0,0,0,-14,-6,-14,-7,-53,-28,-71,-80,-80,-70,-82,-77,-75,-73,-84,-69,-74,-73,-60,-57,-75,-53,-110,-113,-113,-107,-114,-91,-81,-85,-82,-73,-93,-73,-93,-93,-93,-66,-85,-24,-64,-22,-61,-50,-50,-29,-94,-99,-94,-96,-100,-97,-108,-100,-100,-72,-71,-47,-50,-63,-74,-63,-60,-54,-194,-180,-181,-65,-29966,-29954]} 1. e4 {[%emt 0:00:02]} e5 {[%emt 0:00:27]} 2. Nf3 {[%emt 0:00:09]} Nc6 {[%emt 0:00:04]} 3. Bb5 {[%emt 0:00:14][%cal Bf1b5,Bb5a4,Ba4b3][%mdl 32]} a6 {[%emt 0:00:14]} 4. Ba4 {[%emt 0:00:06]} Nf6 {[%emt 0:00:14]} 5. O-O {[%emt 0:00:15]} Bc5 {[%emt 0:01:06]} 6. c3 {[%emt 0:01:05]} b5 {[%emt 0:00:31]} 7. Bb3 {[%emt 0:00:58]} d6 {[%emt 0:00:12]} 8. d4 {[%emt 0:01:37]} Bb6 {[%emt 0:00:24]} 9. dxe5 {[%emt 0:08:23]} Nxe5 {[%emt 0:01:40]} 10. Nxe5 {[%emt 0:01:33]} dxe5 {[%emt 0:00:06]} 11. Qxd8+ {[%emt 0:01:53]} Kxd8 {[%emt 0:00:05]} 12. Bg5 {[%emt 0:06:38] The position is equal.} Ke7 {[%emt 0:01:26]} 13. Nd2 {[%emt 0:05:30]} h6 {[%emt 0:04:34]} 14. Bxf6+ {[%emt 0:06:27]} (14. Bh4 $1 $11 {might be stronger.}) 14... Kxf6 $15 {[%emt 0:00:08]} 15. Rfe1 {[%emt 0:09:19]} Bb7 {[%emt 0:05:37]} 16. Nf1 {[%emt 0:13:02]} Rad8 {[%emt 0:02:37]} 17. Rad1 {[%emt 0:02:05]} Rxd1 {[%emt 0:09:44]} 18. Bxd1 {[%emt 0:00:57]} Rd8 {[%emt 0:00:04][%cal Ob7e4]} 19. Bc2 {[%emt 0:00:43]} g6 {[%emt 0:08:43]} 20. Re2 {[%emt 0:00:43]} Ke7 {[%emt 0:01:26]} 21. Rd2 {[%emt 0:03:41]} Rf8 {[%emt 0:00:05]} 22. Rd1 {[%emt 0:03:34]} a5 {[%emt 0:12:08]} 23. g4 {[%emt 0:13:24]} ({White should try} 23. a4 $15) 23... Bc8 $17 {[%emt 0:05:11]} 24. h3 {[%emt 0:00:50]} h5 {[%emt 0:06:09]} 25. Nh2 {[%emt 0:05:13]} a4 {[%emt 0:02:47]} 26. a3 {[%emt 0:03:51]} Rh8 {[%emt 0:00:56]} 27. Rd2 {[%emt 0:04:03]} Be6 {[%emt 0:04:00]} 28. Kg2 {[%emt 0:00:21]} c6 {[%emt 0:01:34]} 29. Bd1 {[%emt 0:02:18]} hxg4 {[%emt 0:00:39]} 30. hxg4 {[%emt 0:00:09]} Bc7 {[%emt 0:03:32] Black has more active pieces.} 31. Nf1 {[%emt 0:04:08]} Ke8 {[%emt 0:00:47]} (31... f6 $17) 32. Be2 {[%emt 0:00:34]} Bd8 {[%emt 0:01:31]} 33. Rd6 {[%emt 0:00:28]} Bd7 {[%emt 0:00:07]} 34. Rd3 {[%emt 0:00:29]} Bg5 {[%emt 0:00:11]} 35. Ne3 {[%emt 0:00:38]} (35. c4 $1 $11) 35... Ke7 {[%emt 0:01:41]} 36. c4 {[%emt 0:01:20]} Bxe3 {[%emt 0:09:18]} 37. Rxe3 {[%emt 0:00:08]} bxc4 {[%emt 0:00:12]} 38. Bxc4 {[%emt 0:01:19]} Bxg4 {[%emt 0:00:06][%mdl 4096] Endgame. KRB-KRB} 39. b4 {[%emt 0:00:44]} Bd1 {[%emt 0:04:12]} 40. Rc3 {[%emt 0:00:35]} Rd8 {[%emt 0:02:58]} 41. Ba6 {[%emt 0:15:04]} Rd6 {[%emt 0:00:46]} 42. Kf1 {[%emt 0:06:45]} c5 {[%emt 0:06:20]} 43. b5 {[%emt 0:03:14][%cal Of1g2]} c4 {[%emt 0:02:31]} 44. f4 {[%emt 0:07:12]} (44. Rxc4 $15 Bf3 45. Rc7+ Kd8 46. Rc1) 44... exf4 $19 {[%emt 0:01:30] And now ...Bb3 would win.} 45. Rxc4 {[%emt 0:00:05]} f3 {[%emt 0:00:27]} (45... f6 $19 {Strongly threatening ...Bb3.} 46. Rc7+ Kd8) 46. Bb7 $2 {[%emt 0:01:13][%mdl 8192] [#]} (46. Ke1 $15) 46... Be2+ {[%emt 0:00:06] Weighted Error Value: White=0.31/Black=0.15 (very precise) .  Loses game:     	White=1     	---        Mistake:       	White=4     	Black=2      Inaccurate:     	White=3     	Black=1      OK:         	White=15    	Black=12     Best:        	White=1     	Black=5} 0-1

[Event "27th OIBM 2024"]
[Site "Gmund am Tegernsee"]
[Date "2024.10.26"]
[Round "1.2"]
[White "Safarli, Eltaj"]
[Black "Juergens, Klaus"]
[Result "1-0"]
[ECO "B30"]
[WhiteElo "2596"]
[BlackElo "2108"]
[Annotator "TA"]
[PlyCount "113"]
[EventDate "2024.09.16"]
[EventType "swiss"]
[EventCountry "GER"]
[SourceTitle "playchess.com"]
[Source "ChessBase"]
[SourceQuality "1"]
[TimeControl "40/5400+30:1800+30"]

{[%evp 21,113,43,40,35,44,29,39,36,36,40,51,53,60,52,54,43,52,45,75,60,74,76,74,75,80,101,96,92,80,99,143,143,145,148,135,134,165,144,208,202,210,216,214,218,183,81,83,90,91,91,115,87,85,92,134,147,197,197,197,197,197,197,197,197,197,197,195,208,201,200,279,301,254,254,1043,1043,1154,1133,9169,9876,9902,5365,9169,9169,7189,6739,6189,2417,6624,1347,6158,5097,29978,29979]} 1. e4 {[%emt 0:00:05]} c5 {[%emt 0:00:12]} 2. Nf3 {[%emt 0:00:10]} Nc6 {[%emt 0:00:12]} 3. Bb5 {[%emt 0:00:04]} e6 {[%emt 0:00:16]} 4. O-O {[%emt 0:00:48]} Nge7 {[%emt 0:00:36]} 5. Nc3 {[%emt 0:00:21]} a6 {[%emt 0:02:33]} 6. Bxc6 {[%emt 0:00:11]} Nxc6 {[%emt 0:00:13]} 7. d4 {[%emt 0:00:10]} cxd4 {[%emt 0:02:34]} 8. Nxd4 {[%emt 0:00:15]} d6 {[%emt 0:03:24]} 9. Re1 {[%emt 0:00:33]} Be7 {[%emt 0:01:23]} 10. Nxc6 {[%emt 0:01:23]} bxc6 {[%emt 0:00:10]} 11. Qg4 {[%emt 0:01:26]} g6 {[%emt 0:07:25]} 12. b3 {[%emt 0:04:00]} Qa5 {[%emt 0:05:25]} 13. Bb2 {[%emt 0:01:45]} e5 {[%emt 0:03:52]} 14. Qe2 {[%emt 0:00:34] White is slightly better.} O-O {[%emt 0:00:56]} 15. Na4 {[%emt 0:00:39]} Re8 {[%emt 0:13:38]} 16. Rad1 {[%emt 0:02:22]} Bf8 {[%emt 0:01:59]} 17. c4 {[%emt 0:02:03]} Be6 {[%emt 0:05:43]} 18. Qe3 {[%emt 0:03:08]} Qc7 {[%emt 0:06:11]} 19. c5 {[%emt 0:01:50]} Rab8 {[%emt 0:06:04]} 20. Rc1 {[%emt 0:04:07]} Rb5 {[%emt 0:05:18]} 21. h3 {[%emt 0:03:01]} dxc5 {[%emt 0:04:35]} 22. Nxc5 {[%emt 0:01:29]} Qa7 {[%emt 0:01:44]} 23. Nxe6 {[%emt 0:03:03]} Qxe3 {[%emt 0:00:28]} 24. Rxe3 {[%emt 0:00:04][%cal Be1e3,Be3d3,Bd3d8,Bd8a8,Ba8a7][%mdl 32]} Rxe6 {[%emt 0:00:15]} 25. Rd3 {[%emt 0:00:29]} Rc5 {[%emt 0:04:32]} 26. Rxc5 {[%emt 0:02:57]} Bxc5 $16 {[%emt 0:00:08][%mdl 4096] Endgame. KRB-KRB} 27. Rd8+ {[%emt 0:00:10]} Kg7 {[%emt 0:00:17]} 28. Kf1 {[%emt 0:01:17]} f6 {[%emt 0:04:55]} 29. Ke2 {[%emt 0:02:07]} Rd6 {[%emt 0:02:05]} (29... Bb4 $16 30. Rb8 a5) 30. Ra8 $18 {[%emt 0:02:48]} Bb4 {[%emt 0:04:12] [#] aiming for ...Rd2+.} 31. Ra7+ {[%emt 0:00:46]} (31. Rxa6 $2 {is the wrong capture.} Rd2+ 32. Kf1 Rxb2 $19) 31... Kg8 {[%emt 0:01:03]} 32. Bc1 {[%emt 0:00:06] Prevents Rd2+.} (32. Rxa6 $2 {perishes.} Rd2+ 33. Kf1 Rxb2 $19) 32... a5 {[%emt 0:03:55]} 33. g4 {[%emt 0:02:03]} (33. a3 $18 Bc3 34. Bh6) 33... g5 $16 {[%emt 0:00:49]} 34. Be3 {[%emt 0:02:06]} h6 {[%emt 0:02:14]} 35. Rc7 {[%emt 0:00:20]} Kh8 {[%emt 0:00:46]} 36. Kf3 {[%emt 0:03:41]} Kg8 {[%emt 0:00:51]} 37. Kg3 {[%emt 0:01:16]} Kh8 {[%emt 0:00:41]} 38. h4 {[%emt 0:00:10][%cal Bh3h4,Bh4h5][%mdl 32] White is more active.} Kg8 {[%emt 0:01:05]} (38... Bd2 $16) 39. h5 $18 {[%emt 0:00:04]} Kh8 {[%emt 0:02:06]} 40. Kf3 {[%emt 0:00:09]} Kg8 {[%emt 0:00:26]} 41. Ke2 {[%emt 0:30:05]} Kh8 {[%emt 0:30:32]} 42. Ra7 {[%emt 0:02:58]} Kg8 {[%emt 0:01:38]} 43. Bc1 {[%emt 0:00:37]} Rd8 {[%emt 0:00:00]} 44. a3 {[%emt 0:00:00]} Bc3 {[%emt 0:00:00]} 45. Ra6 {[%emt 0:00:00]} Rb8 {[%emt 0:00:00]} 46. Rxc6 {[%emt 0:00:00]} Rxb3 {[%emt 0:00:00]} 47. Rxf6 {[%emt 0:00:00]} Kg7 {[%emt 0:00:00]} (47... Rb1) 48. Rf3 {[%emt 0:00:00]} a4 {[%emt 0:00:00][%cal Ba5a4,Ba4b3][%mdl 32]} 49. Kd1 {[%emt 0:00:00]} Bd4 {[%emt 0:00:00] [#]} 50. Rxb3 $1 {[%emt 0:00:00]} axb3 {[%emt 0:00:00] KB-KB} 51. Be3 {[%emt 0:00:00]} Bc3 {[%emt 0:00:00]} 52. a4 {[%emt 0:00:00]} Kf6 {[%emt 0:00:00]} 53. Kc1 {[%emt 0:00:00]} Ke6 {[%emt 0:00:00]} 54. Kb1 {[%emt 0:00:00]} (54. Bc5 $142 Kd7 55. Bf8) 54... Kf6 {[%emt 0:00:00]} 55. Bc5 {[%emt 0:00:00]} Kf7 {[%emt 0:00:00]} 56. f3 {[%emt 0:00:00]} Kg7 {[%emt 0:00:00]} 57. Bb6 {[%emt 0:00:00] Weighted Error Value: White=0.05 (flawless) /Black=0.33.  Mistake:       	White=1     	Black=3      Inaccurate:     	---       	Black=4      OK:         	White=19    	Black=10     Best:        	White=3     	Black=2} 1-0

[Event "27th OIBM 2024"]
[Site "Gmund am Tegernsee"]
[Date "2024.10.26"]
[Round "1.3"]
[White "Kather, Yannick"]
[Black "Karthik Venkataraman"]
[Result "0-1"]
[ECO "C01"]
[WhiteElo "2108"]
[BlackElo "2581"]
[Annotator "TA"]
[PlyCount "76"]
[EventDate "2024.09.16"]
[EventType "swiss"]
[EventCountry "GER"]
[SourceTitle "playchess.com"]
[Source "ChessBase"]
[SourceQuality "1"]
[TimeControl "40/5400+30:1800+30"]

{[%evp 10,76,26,-11,35,38,35,9,3,6,14,0,5,0,40,-25,0,0,0,-29,-23,-53,0,0,0,-40,-47,-59,-40,-53,-62,-118,-112,-131,-156,-177,-183,-182,-165,-197,-185,-209,-217,-214,-218,-208,-219,-226,-227,-225,-222,-435,-410,-439,-439,-431,-424,-424,-424,-610,-595,-909,-836,-1438,-1145,-1876,-1866,-1417,-1074]} 1. e4 {[%emt 0:00:05]} e6 {[%emt 0:06:28]} 2. d4 {[%emt 0:00:12]} d5 {[%emt 0:00:05]} 3. Nc3 {[%emt 0:00:14]} Bb4 {[%emt 0:00:06]} 4. exd5 {[%emt 0:00:12]} exd5 {[%emt 0:00:32]} 5. Bd3 {[%emt 0:00:11]} Ne7 {[%emt 0:02:14]} 6. Qf3 {[%emt 0:01:00]} b6 {[%emt 0:09:09]} (6... c5 $11 {is superior.} 7. dxc5 d4) 7. Nge2 $14 {[%emt 0:10:20]} Ba6 {[%emt 0:02:24]} 8. Bxa6 {[%emt 0:09:05]} Nxa6 {[%emt 0:00:15] The position is equal.} 9. Qd3 {[%emt 0:02:38]} Bxc3+ {[%emt 0:02:12]} 10. bxc3 {[%emt 0:00:35]} Nb8 {[%emt 0:00:33][%cal Ba6b8,Bb8c6,Bc6b4][%mdl 32]} 11. O-O {[%emt 0:00:21]} Nbc6 {[%emt 0:00:48]} 12. c4 {[%emt 0:01:19]} (12. Re1 $14) 12... O-O {[%emt 0:01:47]} 13. cxd5 {[%emt 0:03:07]} Qxd5 {[%emt 0:00:18]} 14. Bf4 {[%emt 0:18:34][%cal Oc2c4]} Nb4 {[%emt 0:03:51]} 15. Qd2 {[%emt 0:05:34]} Na6 {[%emt 0:03:47]} (15... Nxa2 $2 16. c3 $18 (16. Bxc7 Qc4 $11)) (15... Qc4 $5) 16. Qd3 {[%emt 0:12:41]} Nb4 {[%emt 0:01:17][%csl LRa2,LRd3]} 17. Qd2 {[%emt 0:00:17]} Qc4 {[%emt 0:00:13][%cal Oe7d5]} (17... Nxa2 $2 18. c3 $18 (18. Bxc7 Qc4 $11)) 18. Bxc7 {[%emt 0:01:43]} Ned5 {[%emt 0:07:06]} ({Much worse is} 18... Qxc7 19. Qxb4 Qxc2 20. Qxe7 $11) 19. c3 {[%emt 0:03:12]} Rfe8 {[%emt 0:00:05]} 20. Ng3 {[%emt 0:12:25] Black continues to play with concentration.} ({White should try} 20. Be5 $15 Nc6 21. Ng3 Nxe5 (21... Qxc3 22. Qxc3 Nxc3 23. Rac1 $11) (21... Nxc3 22. Bxg7 Re6 23. d5 $18) 22. dxe5) 20... Qxc3 {[%emt 0:02:56] Black is much more active.} 21. Qxc3 {[%emt 0:00:50]} Nxc3 {[%emt 0:00:03] A dynamic duo of knights.} 22. a3 {[%emt 0:05:02]} Nbd5 $36 {[%emt 0:00:07][%mdl 2048] Black is really pushing.} 23. Bd6 {[%emt 0:02:04]} a5 {[%emt 0:00:08] [#] Prevents Bb4. ...Rad8 is the strong threat.} 24. Rfe1 {[%emt 0:06:05]} g6 {[%emt 0:01:47] Wards off Nf5. Hoping for ...Rxe1+.} 25. f3 {[%emt 0:02:59]} Rxe1+ {[%emt 0:12:31]} 26. Rxe1 {[%emt 0:00:07] [#]} Rd8 $1 {[%emt 0:00:02]} 27. Ne4 {[%emt 0:00:34]} Nxe4 {[%emt 0:01:22]} 28. fxe4 {[%emt 0:00:06]} Rxd6 {[%emt 0:00:03]} 29. exd5 {[%emt 0:00:06]} Rxd5 $19 {[%emt 0:00:04][%mdl 4096] Endgame. KR-KR} 30. Rb1 $2 {[%emt 0:00:21]} (30. Rd1) 30... Rxd4 {[%emt 0:00:07]} 31. Rxb6 {[%emt 0:00:14]} Rd3 {[%emt 0:00:04] Black is clearly winning.} 32. a4 {[%emt 0:01:31]} Rd4 {[%emt 0:00:03]} 33. g3 {[%emt 0:01:44]} Rxa4 {[%emt 0:00:06]} 34. Kg2 {[%emt 0:00:02]} (34. Ra6 $142) 34... Ra2+ {[%emt 0:00:08]} 35. Kh3 {[%emt 0:00:13]} h5 {[%emt 0:00:09]} 36. Ra6 {[%emt 0:00:11]} Kg7 {[%emt 0:00:11] Threatens to win with ...g5.} 37. Rb6 {[%emt 0:00:08]} g5 {[%emt 0:00:36]} 38. Ra6 {[%emt 0:00:53]} f6 {[%emt 0:00:08] Weighted Error Value: White=0.54/Black=0.06 (flawless) .  Mistake:       	White=4     	---        Inaccurate:     	White=5     	Black=1      OK:         	White=10    	Black=17     Best:        	---       	Black=1} 0-1

[Event "27th OIBM 2024"]
[Site "Gmund am Tegernsee"]
[Date "2024.10.26"]
[Round "1.4"]
[White "Piorun, Kacper"]
[Black "Thannheiser, Thomas"]
[Result "1-0"]
[ECO "D05"]
[WhiteElo "2581"]
[BlackElo "2108"]
[Annotator "TA"]
[PlyCount "79"]
[EventDate "2024.09.16"]
[EventType "swiss"]
[EventCountry "GER"]
[SourceTitle "playchess.com"]
[Source "ChessBase"]
[SourceQuality "1"]
[TimeControl "40/5400+30:1800+30"]

{[%evp 13,79,18,31,20,26,12,22,23,25,18,10,0,25,20,27,29,28,35,34,8,10,0,43,14,30,20,15,16,12,15,20,18,19,15,22,26,23,17,16,21,19,19,28,20,55,58,47,40,50,36,47,40,53,69,143,141,249,249,348,181,243,233,335,291,629,435,831,264]} 1. d4 {[%emt 0:00:02]} d5 {[%emt 0:00:19]} 2. Nf3 {[%emt 0:00:10]} Nf6 {[%emt 0:00:19]} 3. e3 {[%emt 0:00:13]} e6 {[%emt 0:00:31]} 4. Bd3 {[%emt 0:00:03]} c5 {[%emt 0:00:53]} 5. b3 {[%emt 0:00:04]} Nc6 {[%emt 0:00:42]} 6. Bb2 {[%emt 0:00:05]} Bd6 {[%emt 0:02:17]} 7. O-O {[%emt 0:00:37]} O-O {[%emt 0:02:51]} 8. dxc5 {[%emt 0:03:40]} Bxc5 {[%emt 0:00:17]} 9. Nbd2 {[%emt 0:00:43]} Qe7 {[%emt 0:19:54]} 10. c4 {[%emt 0:03:49] The position is equal.} Rd8 {[%emt 0:08:06]} 11. Qb1 {[%emt 0:03:07]} h6 {[%emt 0:08:16]} 12. a3 {[%emt 0:02:21]} a6 {[%emt 0:02:55]} 13. b4 {[%emt 0:08:19] [#] Bxf6 is the strong threat.} Bd6 {[%emt 0:05:31]} 14. Rd1 {[%emt 0:01:24]} Bc7 {[%emt 0:05:07]} 15. Qc2 {[%emt 0:14:37]} Bd7 {[%emt 0:07:29]} 16. Nb3 {[%emt 0:05:11][%cal Bd2b3,Bb3d4,Bd4e2][%mdl 32]} dxc4 {[%emt 0:06:03]} 17. Bxc4 {[%emt 0:07:07]} Bb6 {[%emt 0:01:31] Against Nc5} 18. Rac1 {[%emt 0:03:52]} Be8 {[%emt 0:02:01]} 19. Bd3 {[%emt 0:02:11]} Rac8 {[%emt 0:01:01][%cal Oc6b4]} 20. Qb1 {[%emt 0:00:56]} Nb8 {[%emt 0:01:53]} 21. Nbd4 {[%emt 0:02:04]} Nc6 {[%emt 0:03:29]} 22. Ne2 {[%emt 0:07:32]} Nb8 {[%emt 0:04:08]} 23. Nc3 {[%emt 0:01:15]} Nbd7 {[%emt 0:02:03]} 24. h3 {[%emt 0:02:25]} Ba7 {[%emt 0:00:56]} 25. Rd2 {[%emt 0:04:47]} Nb6 {[%emt 0:01:03]} 26. Ne4 {[%emt 0:05:18]} Nxe4 {[%emt 0:06:53]} 27. Bxe4 {[%emt 0:00:04]} Rxd2 {[%emt 0:02:58]} 28. Nxd2 {[%emt 0:00:05]} Qd7 {[%emt 0:04:07]} 29. Bd4 {[%emt 0:09:18]} Rxc1+ {[%emt 0:00:09]} 30. Qxc1 {[%emt 0:00:03]} Nc8 {[%emt 0:00:06]} 31. Bxa7 {[%emt 0:02:29]} Nxa7 {[%emt 0:00:01]} 32. Qc5 {[%emt 0:01:29]} Nb5 {[%emt 0:01:45]} 33. Nc4 {[%emt 0:01:13]} f6 {[%emt 0:00:23]} (33... Qd1+ $14 34. Kh2 Qd8) 34. Bf3 $16 {[%emt 0:02:59] White has more active pieces.} Qd8 {[%emt 0:01:02]} (34... Qc7 $16 {was necessary.}) 35. Bxb7 $18 {[%emt 0:01:26]} Nc3 {[%emt 0:00:24]} 36. Bf3 {[%emt 0:01:54] Inhibits Ne2+.} (36. Bxa6 {gets mated.} Qd1+ 37. Kh2 Ne2) (36. Nd6 $142 {[%cal Ob7a6] Hoping for Bxa6!} Bb5 37. Bc8) 36... Bb5 {[%emt 0:00:22]} 37. Nd6 {[%emt 0:01:00][%cal Od6b5]} Be2 {[%emt 0:00:31]} (37... Na4 {was worth a try.} 38. Qd4 Qc7 39. Nxb5 axb5) 38. Bc6 {[%emt 0:03:20]} Nb1 $2 {[%emt 0:00:14] [#]} (38... Bb5) 39. a4 {[%emt 0:00:19]} Qc7 {[%emt 0:00:50]} (39... Nc3 $142 40. Qxc3 Qxd6) 40. Be4 $2 {[%emt 0:02:59] Weighted Error Value: White=0.17 (very precise) /Black=0.29 (precise) .  Mistake:       	White=1     	Black=5      Inaccurate:     	White=3     	Black=3      OK:         	White=14    	Black=6      Best:        	White=2     	Black=3} (40. b5 axb5 41. axb5) 1-0

[Event "27th OIBM 2024"]
[Site "Gmund am Tegernsee"]
[Date "2024.10.26"]
[Round "1.5"]
[White "Ennenbach, Ralph"]
[Black "Jumabayev, Rinat"]
[Result "0-1"]
[ECO "B43"]
[WhiteElo "2105"]
[BlackElo "2577"]
[Annotator "TA"]
[PlyCount "40"]
[EventDate "2024.09.16"]
[EventType "swiss"]
[EventCountry "GER"]
[SourceTitle "playchess.com"]
[Source "ChessBase"]
[SourceQuality "1"]
[TimeControl "40/5400+30:1800+30"]

{[%evp 12,40,26,4,26,15,17,-31,-33,-29,-33,-77,-94,-106,-107,-127,-122,-127,-127,-193,-204,-217,-220,-318,-320,-441,-432,-419,-423,-490,-469]} 1. e4 {[%emt 0:00:02]} c5 {[%emt 0:04:55]} 2. Nf3 {[%emt 0:00:08]} e6 {[%emt 0:00:35]} 3. d4 {[%emt 0:02:19]} cxd4 {[%emt 0:00:08]} 4. Nxd4 {[%emt 0:00:11]} a6 {[%emt 0:00:05]} 5. Nc3 {[%emt 0:00:53]} Qc7 {[%emt 0:00:13]} 6. f4 {[%emt 0:04:11]} b5 {[%emt 0:04:15]} 7. Bd3 {[%emt 0:03:16]} Bb7 {[%emt 0:00:45]} 8. Be3 {[%emt 0:06:29]} Nf6 {[%emt 0:09:30]} 9. e5 {[%emt 0:01:36]} (9. Qf3 $11 {is superior.}) 9... Bxg2 $15 {[%emt 0:20:12] Black is slightly better.} 10. Rg1 {[%emt 0:01:29]} Nd5 {[%emt 0:00:40]} 11. Nxd5 {[%emt 0:00:02]} Bxd5 {[%emt 0:00:16]} 12. Qe2 {[%emt 0:04:26]} Nc6 {[%emt 0:01:52]} 13. a4 {[%emt 0:00:49]} bxa4 {[%emt 0:04:05]} 14. Rxa4 {[%emt 0:00:36]} Nb4 {[%emt 0:01:50]} 15. Bxa6 {[%emt 0:08:24] [#]} (15. Kd2 $17 {was called for.}) 15... Bc4 $1 $19 {[%emt 0:07:06][%mdl 512]} 16. Bxc4 {[%emt 0:04:43]} (16. Qxc4 Qxc4) 16... Rxa4 {[%emt 0:00:24]} 17. Kf2 {[%emt 0:00:28] [#]} (17. Bb3 $142 Ra1+ 18. Kd2 Rxg1 19. Bxg1) 17... Nxc2 $1 {[%emt 0:03:14][%mdl 512]} 18. b3 {[%emt 0:01:27]} (18. Qxc2 Rxc4) 18... Nxd4 {[%emt 0:04:25]} 19. Bxd4 {[%emt 0:00:05] [#]} Bc5 $1 {[%emt 0:00:21]} 20. Qe3 {[%emt 0:00:36]} (20. Bxc5 Qxc5+) 20... Ra2+ {[%emt 0:00:24] White got outplayed after the opening.   Weighted Error Value: White=0.49/Black=0.00 (flawless) .  Mistake:       	White=3     	---        Inaccurate:     	White=2     	---        OK:         	White=1     	Black=9      Best:        	---       	Black=2      Brilliant:      	---       	Black=1} 0-1